[Event "Titled Tuesday Blitz June 20 Late 2023"]
[White "Novik, Maxim"]
[Black "Grigoriants, Sergey"]
[WhiteFideId "4102924"]
[BlackFideId "4130804"]
[WhiteElo "2287"]
[BlackElo "2502"]
[Result "0-1"]
[Round "2"]
[TimeControl "180+2"]
[Date "2023.06.20"]
[WhiteClock "0:00:25"]
[BlackClock "0:00:15"]
[Board "40"]

1. e4 {[%clk 0:03:00]}  e5 {[%clk 0:02:49]} 2. Nf3 {[%clk 0:02:59]}  Nc6 {[%clk 0:02:49]} 3. Bc4 {[%clk 0:03:00]}  Bc5 {[%clk 0:02:48]} 4. d3 {[%clk 0:03:00]}  Nf6 {[%clk 0:02:49]} 5. c3 {[%clk 0:03:00]}  d6 {[%clk 0:02:49]} 6. O-O {[%clk 0:02:59]}  a6 {[%clk 0:02:49]} 7. Bb3 {[%clk 0:02:57]}  h6 {[%clk 0:02:47]} 8. Nbd2 {[%clk 0:02:57]}  O-O {[%clk 0:02:47]} 9. Re1 {[%clk 0:02:58]}  Re8 {[%clk 0:02:47]} 10. Nf1 {[%clk 0:02:58]}  Ba7 {[%clk 0:02:28]} 11. Ng3 {[%clk 0:02:58]}  Be6 {[%clk 0:02:29]} 12. Bc2 {[%clk 0:02:57]}  d5 {[%clk 0:02:28]} 13. exd5 {[%clk 0:02:53]}  Bxd5 {[%clk 0:02:26]} 14. h3 {[%clk 0:02:49]}  Qd7 {[%clk 0:02:23]} 15. Be3 {[%clk 0:02:41]}  Bxe3 {[%clk 0:02:14]} 16. Rxe3 {[%clk 0:02:41]}  Re7 {[%clk 0:02:02]} 17. Qe2 {[%clk 0:02:22]}  Rae8 {[%clk 0:02:01]} 18. Re1 {[%clk 0:02:21]}  Nh7 {[%clk 0:01:20]} 19. Qd1 {[%clk 0:01:58]}  Nf8 {[%clk 0:01:16]} 20. Nh4 {[%clk 0:01:41]}  g6 {[%clk 0:01:10]} 21. Ne4 {[%clk 0:01:31]}  Kg7 {[%clk 0:01:04]} 22. b4 {[%clk 0:01:23]}  f5 {[%clk 0:00:57]} 23. Nc5 {[%clk 0:01:22]}  Qc8 {[%clk 0:00:58]} 24. Bb3 {[%clk 0:01:12]}  Bxb3 {[%clk 0:00:52]} 25. Nxb3 {[%clk 0:01:08]}  b6 {[%clk 0:00:32]} 26. Nf3 {[%clk 0:01:07]}  Qd7 {[%clk 0:00:31]} 27. Qc2 {[%clk 0:00:58]}  Qd6 {[%clk 0:00:30]} 28. Nbd2 {[%clk 0:00:57]}  Nd7 {[%clk 0:00:28]} 29. Nc4 {[%clk 0:00:57]}  Qf6 {[%clk 0:00:28]} 30. a4 {[%clk 0:00:54]}  Nd8 {[%clk 0:00:23]} 31. d4 {[%clk 0:00:48]}  e4 {[%clk 0:00:23]} 32. Nfe5 {[%clk 0:00:48]}  Nxe5 {[%clk 0:00:22]} 33. Nxe5 {[%clk 0:00:48]}  Nf7 {[%clk 0:00:22]} 34. Nxf7 {[%clk 0:00:47]}  Qxf7 {[%clk 0:00:22]} 35. Qe2 {[%clk 0:00:44]}  f4 {[%clk 0:00:17]} 36. Qxa6 {[%clk 0:00:32]}  fxe3 {[%clk 0:00:17]} 37. Rxe3 {[%clk 0:00:32]}  Qd5 {[%clk 0:00:17]} 38. Qe2 {[%clk 0:00:31]}  c6 {[%clk 0:00:15]} 39. f3 {[%clk 0:00:31]}  b5 {[%clk 0:00:14]} 40. fxe4 {[%clk 0:00:32]}  Rxe4 {[%clk 0:00:14]} 41. Rxe4 {[%clk 0:00:29]}  Qxe4 {[%clk 0:00:14]} 42. Qf2 {[%clk 0:00:29]}  Qe1+ {[%clk 0:00:14]} 43. Qxe1 {[%clk 0:00:25]}  Rxe1+ {[%clk 0:00:15]} 0-1


[Site "https://www.chess.com"]

[Event "Titled Tuesday Blitz June 20 Late 2023"]
[White "brm72"]
[Black "Ghazarian, Kirk"]
[BlackFideId "30908604"]
[WhiteElo "2550"]
[BlackElo "2346"]
[Result "1-0"]
[Round "2"]
[TimeControl "180+2"]
[Date "2023.06.20"]
[WhiteClock "0:00:21"]
[BlackClock "0:00:04"]
[Board "44"]

1. e4 {[%clk 0:03:00]}  c5 {[%clk 0:02:58]} 2. Nf3 {[%clk 0:02:55]}  Nf6 {[%clk 0:02:59]} 3. e5 {[%clk 0:02:54]}  Nd5 {[%clk 0:02:59]} 4. Nc3 {[%clk 0:02:54]}  e6 {[%clk 0:02:58]} 5. Nxd5 {[%clk 0:02:54]}  exd5 {[%clk 0:02:59]} 6. d4 {[%clk 0:02:54]}  Nc6 {[%clk 0:03:00]} 7. dxc5 {[%clk 0:02:30]}  Bxc5 {[%clk 0:03:00]} 8. Bd3 {[%clk 0:02:22]}  d6 {[%clk 0:02:56]} 9. exd6 {[%clk 0:02:19]}  O-O {[%clk 0:02:53]} 10. O-O {[%clk 0:02:19]}  Qxd6 {[%clk 0:02:48]} 11. c3 {[%clk 0:02:15]}  h6 {[%clk 0:02:46]} 12. h3 {[%clk 0:02:14]}  Re8 {[%clk 0:02:35]} 13. Bc2 {[%clk 0:02:01]}  Bxh3 {[%clk 0:02:30]} 14. gxh3 {[%clk 0:01:56]}  Qg3+ {[%clk 0:02:29]} 15. Kh1 {[%clk 0:01:57]}  Qxh3+ {[%clk 0:02:23]} 16. Nh2 {[%clk 0:01:46]}  Ne5 {[%clk 0:02:01]} 17. f4 {[%clk 0:01:37]}  Nc4 {[%clk 0:01:51]} 18. Qd3 {[%clk 0:01:31]}  Qxd3 {[%clk 0:01:24]} 19. Bxd3 {[%clk 0:01:32]}  Rad8 {[%clk 0:01:24]} 20. Nf3 {[%clk 0:01:27]}  f6 {[%clk 0:01:19]} 21. Nd4 {[%clk 0:01:26]}  Kf7 {[%clk 0:01:14]} 22. Kg2 {[%clk 0:01:25]}  a6 {[%clk 0:01:06]} 23. Kf3 {[%clk 0:01:25]}  g5 {[%clk 0:01:05]} 24. Rh1 {[%clk 0:01:19]}  Rh8 {[%clk 0:01:04]} 25. b3 {[%clk 0:01:16]}  Nd6 {[%clk 0:01:00]} 26. Nf5 {[%clk 0:01:14]}  Nxf5 {[%clk 0:00:57]} 27. Bxf5 {[%clk 0:01:15]}  Rde8 {[%clk 0:00:47]} 28. Bd2 {[%clk 0:01:07]}  h5 {[%clk 0:00:42]} 29. fxg5 {[%clk 0:01:02]}  fxg5 {[%clk 0:00:43]} 30. Bxg5 {[%clk 0:01:00]}  Re5 {[%clk 0:00:41]} 31. Kf4 {[%clk 0:00:54]}  Rhe8 {[%clk 0:00:35]} 32. Rxh5 {[%clk 0:00:48]}  Be3+ {[%clk 0:00:28]} 33. Kg4 {[%clk 0:00:47]}  Rg8 {[%clk 0:00:27]} 34. Rf1 {[%clk 0:00:41]}  Ke8 {[%clk 0:00:26]} 35. Kh4 {[%clk 0:00:36]}  Bxg5+ {[%clk 0:00:18]} 36. Rxg5 {[%clk 0:00:37]}  Rxg5 {[%clk 0:00:18]} 37. Kxg5 {[%clk 0:00:37]}  Re3 {[%clk 0:00:18]} 38. Rc1 {[%clk 0:00:33]}  Ke7 {[%clk 0:00:16]} 39. Kf4 {[%clk 0:00:32]}  Re2 {[%clk 0:00:14]} 40. Rc2 {[%clk 0:00:33]}  Re1 {[%clk 0:00:14]} 41. Bd3 {[%clk 0:00:33]}  Kd6 {[%clk 0:00:14]} 42. Re2 {[%clk 0:00:33]}  Rc1 {[%clk 0:00:11]} 43. Bc2 {[%clk 0:00:30]}  b5 {[%clk 0:00:05]} 44. Ke3 {[%clk 0:00:29]}  Ra1 {[%clk 0:00:06]} 45. Bd3 {[%clk 0:00:27]}  Kc5 {[%clk 0:00:05]} 46. b4+ {[%clk 0:00:25]}  Kd6 {[%clk 0:00:06]} 47. Kd4 {[%clk 0:00:25]}  Rh1 {[%clk 0:00:04]} 48. Bf5 {[%clk 0:00:21]}  Rh4+ {[%clk 0:00:04]} 49. Kd3 {[%clk 0:00:21]}  Rh1 {[%clk 0:00:04]} 50. Re6+ {[%clk 0:00:21]}  Kc7 {[%clk 0:00:04]} 51. Rxa6 {[%clk 0:00:21]}  Rf1 {[%clk 0:00:03]} 52. Bg6 {[%clk 0:00:21]}  Rg1 {[%clk 0:00:03]} 53. Kd4 {[%clk 0:00:20]}  Kb7 {[%clk 0:00:03]} 54. Rf6 {[%clk 0:00:20]}  Rg3 {[%clk 0:00:02]} 55. Bd3 {[%clk 0:00:19]}  Rg2 {[%clk 0:00:02]} 56. a3 {[%clk 0:00:18]}  Ra2 {[%clk 0:00:03]} 57. Bxb5 {[%clk 0:00:18]}  Rxa3 {[%clk 0:00:03]} 58. Bc6+ {[%clk 0:00:19]}  Kc7 {[%clk 0:00:04]} 59. Bxd5 {[%clk 0:00:19]}  Ra1 {[%clk 0:00:05]} 60. Kc5 {[%clk 0:00:19]}  Re1 {[%clk 0:00:04]} 61. Rf7+ {[%clk 0:00:20]}  Kd8 {[%clk 0:00:05]} 62. b5 {[%clk 0:00:20]}  Rc1 {[%clk 0:00:03]} 63. c4 {[%clk 0:00:21]}  Rb1 {[%clk 0:00:03]} 64. b6 {[%clk 0:00:21]}  Ke8 {[%clk 0:00:04]} 65. Rh7 {[%clk 0:00:21]}  Kd8 {[%clk 0:00:05]} 66. Kc6 {[%clk 0:00:21]}  Kc8 {[%clk 0:00:04]} 67. Rh8# {[%clk 0:00:21]} 1-0


[Site "https://www.chess.com"]

[Event "Titled Tuesday Blitz June 20 Late 2023"]
[White "Ismayil, Malak"]
[Black "Simonian, Hrair"]
[WhiteFideId "13412604"]
[BlackFideId "13302337"]
[WhiteElo "1868"]
[BlackElo "2447"]
[Result "0-1"]
[Round "2"]
[TimeControl "180+2"]
[Date "2023.06.20"]
[WhiteClock "0:00:00"]
[BlackClock "0:00:29"]
[Board "45"]

1. e4 {[%clk 0:03:00]}  c5 {[%clk 0:03:00]} 2. Nf3 {[%clk 0:03:00]}  d6 {[%clk 0:03:00]} 3. Bb5+ {[%clk 0:03:00]}  Nd7 {[%clk 0:02:59]} 4. d4 {[%clk 0:03:00]}  cxd4 {[%clk 0:03:00]} 5. Qxd4 {[%clk 0:03:00]}  a6 {[%clk 0:03:01]} 6. Be2 {[%clk 0:02:59]}  Ngf6 {[%clk 0:03:00]} 7. c4 {[%clk 0:02:53]}  g6 {[%clk 0:03:00]} 8. Nc3 {[%clk 0:02:52]}  Bg7 {[%clk 0:03:01]} 9. Bg5 {[%clk 0:02:36]}  O-O {[%clk 0:03:00]} 10. O-O {[%clk 0:02:36]}  b6 {[%clk 0:02:55]} 11. Rfd1 {[%clk 0:02:31]}  Bb7 {[%clk 0:02:54]} 12. e5 {[%clk 0:01:54]}  dxe5 {[%clk 0:01:46]} 13. Nxe5 {[%clk 0:01:49]}  Nxe5 {[%clk 0:01:46]} 14. Qxe5 {[%clk 0:01:48]}  Qe8 {[%clk 0:01:44]} 15. Qe3 {[%clk 0:01:42]}  Qc6 {[%clk 0:01:38]} 16. Bf3 {[%clk 0:01:41]}  Qc8 {[%clk 0:01:35]} 17. Bxb7 {[%clk 0:01:24]}  Qxb7 {[%clk 0:01:36]} 18. Bxf6 {[%clk 0:01:25]}  Bxf6 {[%clk 0:01:24]} 19. Nd5 {[%clk 0:01:23]}  Bxb2 {[%clk 0:01:21]} 20. Rab1 {[%clk 0:01:21]}  Bg7 {[%clk 0:01:15]} 21. Rxb6 {[%clk 0:00:47]}  Qa7 {[%clk 0:01:14]} 22. Qxe7 {[%clk 0:00:38]}  Qxe7 {[%clk 0:00:53]} 23. Nxe7+ {[%clk 0:00:39]}  Kh8 {[%clk 0:00:52]} 24. Rb7 {[%clk 0:00:31]}  Rfd8 {[%clk 0:00:51]} 25. Rxd8+ {[%clk 0:00:25]}  Rxd8 {[%clk 0:00:52]} 26. g3 {[%clk 0:00:23]}  Rd1+ {[%clk 0:00:49]} 27. Kg2 {[%clk 0:00:23]}  Bd4 {[%clk 0:00:50]} 28. Nc6 {[%clk 0:00:18]}  Bc5 {[%clk 0:00:49]} 29. Rxf7 {[%clk 0:00:17]}  Rd2 {[%clk 0:00:46]} 30. a4 {[%clk 0:00:15]}  Ra2 {[%clk 0:00:46]} 31. a5 {[%clk 0:00:14]}  Rc2 {[%clk 0:00:44]} 32. Rf4 {[%clk 0:00:13]}  Ra2 {[%clk 0:00:40]} 33. h4 {[%clk 0:00:11]}  Kg7 {[%clk 0:00:40]} 34. Rf3 {[%clk 0:00:05]}  Ra4 {[%clk 0:00:39]} 35. Rf4 {[%clk 0:00:05]}  Ra2 {[%clk 0:00:39]} 36. g4 {[%clk 0:00:05]}  h6 {[%clk 0:00:39]} 37. g5 {[%clk 0:00:05]}  hxg5 {[%clk 0:00:39]} 38. hxg5 {[%clk 0:00:06]}  Kg8 {[%clk 0:00:34]} 39. Ne5 {[%clk 0:00:03]}  Kg7 {[%clk 0:00:31]} 40. Rf7+ {[%clk 0:00:03]}  Kg8 {[%clk 0:00:32]} 41. Rf6 {[%clk 0:00:00]}  Rxa5 {[%clk 0:00:29]} 0-1


[Site "https://www.chess.com"]

[Event "Titled Tuesday Blitz June 20 Late 2023"]
[White "Lorparizangeneh, Shahin"]
[Black "Ince, Taylan Ruzgar"]
[WhiteFideId "12521604"]
[BlackFideId "44513089"]
[WhiteElo "2526"]
[BlackElo "2147"]
[Result "0-1"]
[Round "2"]
[TimeControl "180+2"]
[Date "2023.06.20"]
[WhiteClock "0:00:04"]
[BlackClock "0:00:48"]
[Board "47"]

1. Nf3 {[%clk 0:02:56]}  Nf6 {[%clk 0:02:59]} 2. d4 {[%clk 0:02:56]}  d5 {[%clk 0:02:58]} 3. Bf4 {[%clk 0:02:55]}  c5 {[%clk 0:02:57]} 4. e3 {[%clk 0:02:54]}  Nc6 {[%clk 0:02:55]} 5. Nbd2 {[%clk 0:02:55]}  e6 {[%clk 0:02:53]} 6. c3 {[%clk 0:02:52]}  Bd6 {[%clk 0:02:53]} 7. Bg3 {[%clk 0:02:53]}  O-O {[%clk 0:02:49]} 8. Bd3 {[%clk 0:02:53]}  Qe7 {[%clk 0:02:46]} 9. Ne5 {[%clk 0:02:47]}  Nd7 {[%clk 0:02:44]} 10. Nxd7 {[%clk 0:02:45]}  Bxd7 {[%clk 0:02:43]} 11. Bxd6 {[%clk 0:02:40]}  Qxd6 {[%clk 0:02:44]} 12. dxc5 {[%clk 0:02:31]}  Qxc5 {[%clk 0:02:41]} 13. Bxh7+ {[%clk 0:02:31]}  Kxh7 {[%clk 0:02:30]} 14. Qh5+ {[%clk 0:02:32]}  Kg8 {[%clk 0:02:26]} 15. Ne4 {[%clk 0:02:33]}  Qb5 {[%clk 0:01:42]} 16. Ng5 {[%clk 0:02:26]}  Rfd8 {[%clk 0:01:41]} 17. Qxf7+ {[%clk 0:02:22]}  Kh8 {[%clk 0:01:41]} 18. Qh5+ {[%clk 0:01:41]}  Kg8 {[%clk 0:01:40]} 19. Qh7+ {[%clk 0:01:42]}  Kf8 {[%clk 0:01:40]} 20. Qh8+ {[%clk 0:01:43]}  Ke7 {[%clk 0:01:41]} 21. Qxg7+ {[%clk 0:01:43]}  Kd6 {[%clk 0:01:40]} 22. Nf7+ {[%clk 0:01:44]}  Kc7 {[%clk 0:01:40]} 23. Nxd8 {[%clk 0:01:44]}  Rxd8 {[%clk 0:01:39]} 24. O-O-O {[%clk 0:01:43]}  Kc8 {[%clk 0:01:20]} 25. h4 {[%clk 0:01:41]}  e5 {[%clk 0:01:18]} 26. h5 {[%clk 0:01:33]}  d4 {[%clk 0:01:18]} 27. exd4 {[%clk 0:01:13]}  exd4 {[%clk 0:01:17]} 28. h6 {[%clk 0:01:10]}  Bf5 {[%clk 0:01:04]} 29. h7 {[%clk 0:00:48]}  Qa4 {[%clk 0:01:03]} 30. Rd2 {[%clk 0:00:18]}  Qxa2 {[%clk 0:01:01]} 31. Rc2 {[%clk 0:00:09]}  dxc3 {[%clk 0:00:50]} 32. Qd4 {[%clk 0:00:04]}  Qa1# {[%clk 0:00:48]} 0-1


[Site "https://www.chess.com"]

[Event "Titled Tuesday Blitz June 20 Late 2023"]
[White "Hambleton, Aman"]
[Black "Bruedigam, Martin"]
[WhiteFideId "2606577"]
[BlackFideId "24608033"]
[WhiteElo "2511"]
[BlackElo "2331"]
[Result "1-0"]
[Round "2"]
[TimeControl "180+2"]
[Date "2023.06.20"]
[WhiteClock "0:00:08"]
[BlackClock "0:00:02"]
[Board "52"]

1. d4 {[%clk 0:03:00]}  d5 {[%clk 0:02:49]} 2. Bf4 {[%clk 0:03:01]}  c5 {[%clk 0:02:45]} 3. e3 {[%clk 0:03:01]}  cxd4 {[%clk 0:02:45]} 4. exd4 {[%clk 0:03:02]}  Nc6 {[%clk 0:02:46]} 5. c3 {[%clk 0:03:02]}  Nf6 {[%clk 0:02:45]} 6. Bd3 {[%clk 0:02:58]}  Bg4 {[%clk 0:02:46]} 7. Qb3 {[%clk 0:02:58]}  Qc8 {[%clk 0:02:46]} 8. h3 {[%clk 0:02:54]}  Bh5 {[%clk 0:02:46]} 9. Nd2 {[%clk 0:02:54]}  e6 {[%clk 0:02:46]} 10. Ngf3 {[%clk 0:02:54]}  Be7 {[%clk 0:02:46]} 11. O-O {[%clk 0:02:54]}  O-O {[%clk 0:02:46]} 12. Rfe1 {[%clk 0:02:49]}  Bg6 {[%clk 0:02:46]} 13. Bxg6 {[%clk 0:02:48]}  hxg6 {[%clk 0:02:47]} 14. a4 {[%clk 0:02:49]}  a6 {[%clk 0:02:43]} 15. Ne5 {[%clk 0:02:43]}  Nxe5 {[%clk 0:02:43]} 16. Bxe5 {[%clk 0:02:44]}  Qc6 {[%clk 0:02:43]} 17. a5 {[%clk 0:02:39]}  Nd7 {[%clk 0:02:42]} 18. Nf3 {[%clk 0:02:37]}  Qb5 {[%clk 0:02:35]} 19. Qa2 {[%clk 0:01:06]}  Rfc8 {[%clk 0:02:33]} 20. Bf4 {[%clk 0:00:59]}  Rc6 {[%clk 0:02:09]} 21. Bd2 {[%clk 0:00:18]}  Bd6 {[%clk 0:02:06]} 22. Qa4 {[%clk 0:00:14]}  Qd3 {[%clk 0:01:53]} 23. Qd1 {[%clk 0:00:06]}  Qb5 {[%clk 0:01:32]} 24. Bc1 {[%clk 0:00:04]}  Bc7 {[%clk 0:01:27]} 25. Qe2 {[%clk 0:00:04]}  Nf6 {[%clk 0:01:14]} 26. Kf1 {[%clk 0:00:02]}  Ne4 {[%clk 0:01:10]} 27. Rd1 {[%clk 0:00:02]}  Bd6 {[%clk 0:00:36]} 28. Ne1 {[%clk 0:00:02]}  Rcc8 {[%clk 0:00:31]} 29. Nd3 {[%clk 0:00:02]}  Bc7 {[%clk 0:00:23]} 30. Ne5 {[%clk 0:00:02]}  Bxe5 {[%clk 0:00:19]} 31. Qxb5 {[%clk 0:00:02]}  axb5 {[%clk 0:00:19]} 32. dxe5 {[%clk 0:00:02]}  Nc5 {[%clk 0:00:15]} 33. Ra3 {[%clk 0:00:03]}  Nd7 {[%clk 0:00:13]} 34. f4 {[%clk 0:00:03]}  Rc4 {[%clk 0:00:13]} 35. Be3 {[%clk 0:00:03]}  Rac8 {[%clk 0:00:13]} 36. Rb3 {[%clk 0:00:03]}  Re4 {[%clk 0:00:10]} 37. Kf2 {[%clk 0:00:02]}  g5 {[%clk 0:00:09]} 38. g3 {[%clk 0:00:01]}  gxf4 {[%clk 0:00:09]} 39. gxf4 {[%clk 0:00:02]}  g5 {[%clk 0:00:09]} 40. fxg5 {[%clk 0:00:03]}  Nxe5 {[%clk 0:00:09]} 41. Rxb5 {[%clk 0:00:04]}  Nc4 {[%clk 0:00:07]} 42. Bc1 {[%clk 0:00:04]}  Rc7 {[%clk 0:00:06]} 43. Re1 {[%clk 0:00:02]}  Rh4 {[%clk 0:00:04]} 44. Kg3 {[%clk 0:00:02]}  Rh7 {[%clk 0:00:04]} 45. h4 {[%clk 0:00:03]}  Kg7 {[%clk 0:00:05]} 46. Re2 {[%clk 0:00:02]}  Rd7 {[%clk 0:00:05]} 47. Bf4 {[%clk 0:00:02]}  Rh8 {[%clk 0:00:05]} 48. Be5+ {[%clk 0:00:02]}  Nxe5 {[%clk 0:00:05]} 49. Rxe5 {[%clk 0:00:03]}  Rc8 {[%clk 0:00:05]} 50. Re3 {[%clk 0:00:04]}  Rc4 {[%clk 0:00:05]} 51. Rf3 {[%clk 0:00:04]}  Rdc7 {[%clk 0:00:05]} 52. Rf4 {[%clk 0:00:04]}  Rxf4 {[%clk 0:00:03]} 53. Kxf4 {[%clk 0:00:04]}  Re7 {[%clk 0:00:03]} 54. Ke5 {[%clk 0:00:04]}  Rd7 {[%clk 0:00:03]} 55. Rc5 {[%clk 0:00:04]}  Kg6 {[%clk 0:00:04]} 56. Rc8 {[%clk 0:00:05]}  Kh5 {[%clk 0:00:04]} 57. Rh8+ {[%clk 0:00:05]}  Kg4 {[%clk 0:00:05]} 58. b4 {[%clk 0:00:05]}  Rc7 {[%clk 0:00:05]} 59. Kd4 {[%clk 0:00:06]}  Rc4+ {[%clk 0:00:05]} 60. Kd3 {[%clk 0:00:07]}  Rf4 {[%clk 0:00:04]} 61. Rb8 {[%clk 0:00:07]}  Kxh4 {[%clk 0:00:03]} 62. Rxb7 {[%clk 0:00:07]}  Kxg5 {[%clk 0:00:04]} 63. a6 {[%clk 0:00:08]}  Rf3+ {[%clk 0:00:04]} 64. Kc2 {[%clk 0:00:08]}  Rf2+ {[%clk 0:00:03]} 65. Kb3 {[%clk 0:00:08]}  Kf6 {[%clk 0:00:02]} 66. a7 {[%clk 0:00:08]} 1-0


[Site "https://www.chess.com"]

[Event "Titled Tuesday Blitz June 20 Late 2023"]
[White "Santos Ruiz, Miguel"]
[Black "Taboas Rodriguez, Daniel"]
[WhiteFideId "22291482"]
[BlackFideId "2208466"]
[WhiteElo "2499"]
[BlackElo "2365"]
[Result "0-1"]
[Round "2"]
[TimeControl "180+2"]
[Date "2023.06.20"]
[WhiteClock "0:00:02"]
[BlackClock "0:00:24"]
[Board "54"]

1. e4 {[%clk 0:03:00]}  e5 {[%clk 0:02:59]} 2. Nf3 {[%clk 0:03:00]}  Nc6 {[%clk 0:02:59]} 3. Bc4 {[%clk 0:03:00]}  Nf6 {[%clk 0:02:59]} 4. d3 {[%clk 0:03:00]}  Bc5 {[%clk 0:02:59]} 5. a4 {[%clk 0:02:59]}  d6 {[%clk 0:02:59]} 6. a5 {[%clk 0:02:59]}  a6 {[%clk 0:02:57]} 7. Be3 {[%clk 0:02:59]}  Bb4+ {[%clk 0:02:36]} 8. Bd2 {[%clk 0:02:58]}  Bxd2+ {[%clk 0:02:32]} 9. Nbxd2 {[%clk 0:02:59]}  O-O {[%clk 0:02:31]} 10. O-O {[%clk 0:02:55]}  Be6 {[%clk 0:02:31]} 11. Bxe6 {[%clk 0:02:53]}  fxe6 {[%clk 0:02:32]} 12. Re1 {[%clk 0:02:53]}  Qe7 {[%clk 0:02:28]} 13. c3 {[%clk 0:02:50]}  Nh5 {[%clk 0:02:26]} 14. Re3 {[%clk 0:02:45]}  Nf4 {[%clk 0:02:21]} 15. Qb3 {[%clk 0:02:37]}  Rab8 {[%clk 0:02:11]} 16. g3 {[%clk 0:02:37]}  Ng6 {[%clk 0:02:07]} 17. Kg2 {[%clk 0:02:23]}  Rf6 {[%clk 0:02:07]} 18. h4 {[%clk 0:02:21]}  h6 {[%clk 0:01:50]} 19. Nf1 {[%clk 0:01:42]}  Qf7 {[%clk 0:01:47]} 20. N1h2 {[%clk 0:01:40]}  Nge7 {[%clk 0:01:36]} 21. d4 {[%clk 0:01:01]}  Rf8 {[%clk 0:01:16]} 22. dxe5 {[%clk 0:00:48]}  Nxe5 {[%clk 0:01:14]} 23. Qd1 {[%clk 0:00:32]}  N7g6 {[%clk 0:01:02]} 24. Qe2 {[%clk 0:00:27]}  Nxf3 {[%clk 0:01:01]} 25. Rxf3 {[%clk 0:00:25]}  Ne5 {[%clk 0:00:59]} 26. Rxf6 {[%clk 0:00:23]}  Qxf6 {[%clk 0:01:00]} 27. Ra4 {[%clk 0:00:19]}  c5 {[%clk 0:00:51]} 28. Ra1 {[%clk 0:00:16]}  Qg6 {[%clk 0:00:45]} 29. Rd1 {[%clk 0:00:15]}  Rd8 {[%clk 0:00:45]} 30. f4 {[%clk 0:00:14]}  Nc6 {[%clk 0:00:45]} 31. h5 {[%clk 0:00:11]}  Qf6 {[%clk 0:00:42]} 32. Ng4 {[%clk 0:00:10]}  Qf7 {[%clk 0:00:42]} 33. e5 {[%clk 0:00:09]}  d5 {[%clk 0:00:41]} 34. Ra1 {[%clk 0:00:08]}  Kh8 {[%clk 0:00:38]} 35. Nf2 {[%clk 0:00:08]}  d4 {[%clk 0:00:37]} 36. c4 {[%clk 0:00:08]}  Qf5 {[%clk 0:00:36]} 37. Nd3 {[%clk 0:00:08]}  Nb4 {[%clk 0:00:32]} 38. Nxb4 {[%clk 0:00:04]}  cxb4 {[%clk 0:00:33]} 39. Rd1 {[%clk 0:00:04]}  d3 {[%clk 0:00:33]} 40. Qf3 {[%clk 0:00:04]}  d2 {[%clk 0:00:31]} 41. Qe2 {[%clk 0:00:03]}  Qc2 {[%clk 0:00:30]} 42. g4 {[%clk 0:00:03]}  Qxb2 {[%clk 0:00:28]} 43. Kf2 {[%clk 0:00:03]}  Qd4+ {[%clk 0:00:28]} 44. Qe3 {[%clk 0:00:04]}  Qxc4 {[%clk 0:00:26]} 45. Rxd2 {[%clk 0:00:04]}  Rxd2+ {[%clk 0:00:25]} 46. Qxd2 {[%clk 0:00:05]}  b3 {[%clk 0:00:24]} 47. Qd8+ {[%clk 0:00:05]}  Kh7 {[%clk 0:00:24]} 48. Qe8 {[%clk 0:00:02]}  Qxf4+ {[%clk 0:00:24]} 0-1


[Site "https://www.chess.com"]